bitfinex/quotes_SOLUSD_20251002
["timestamp","ask_amount","ask_price","bid_price","bid_amount"]
[1759364681352,0.2,221.71,221.7,33.25]
[1759364681562,0.2,221.71,221.7,37.7605999]
[1759364682158,0.2,221.71,221.7,37.0705999]
[1759364682378,0.2,221.71,221.7,4.5105999]
[1759364682887,0.2,221.71,221.7,37.0505999]
[1759364684879,0.86,221.71,221.7,37.0505999]
[1759364685484,0.2,221.71,221.7,37.0505999]
[1759364686278,0.86,221.71,221.67,4.51108043]
[1759364686487,0.2,221.71,221.68,53.34]
[1759364686962,0.2,221.71,221.68,54.03]
[1759364687361,0.2,221.71,221.69,0.69]
[1759364687563,0.2,221.71,221.7,33.23]
[1759364689394,0.2,221.71,221.7,37.7405999]
[1759364692180,0.2,221.71,221.7,37.0505999]
[1759364692775,0.2,221.71,221.7,37.7405999]
[1759364693295,0.2,221.71,221.7,37.7205999]
[1759364693470,0.2,221.72,221.7,37.7205999]
[1759364693787,0.2,221.72,221.71,0.71]
[1759364694164,7.86229009,221.74,221.73,20.8]
[1759364694366,0.2,221.76,221.73,54.03]
[1759364695101,0.2,221.76,221.74,5.21978623]
[1759364695282,0.2,221.76,221.75,32.52]
[1759364695481,0.88,221.76,221.74,6.31602225]
[1759364695790,0.88,221.76,221.75,32.52]
[1759364696896,0.88,221.76,221.74,4.50978623]
[1759364697084,0.88,221.76,221.58,22.56451243]
[1759364697085,0.2,221.76,221.75,32.52]
[1759364698378,0.88,221.76,221.72,15.78567562]
[1759364698577,0.68,221.75,221.73,32.52]
[1759364698975,0.68,221.75,221.74,4.50978623]
[1759364699996,0.2,221.76,221.74,4.50978623]
[1759364700197,0.2,221.76,221.75,32.52]
[1759364700630,0.88,221.76,221.75,32.52]
[1759364702998,0.88,221.76,221.7,4.5105999]
[1759364703199,0.68,221.75,221.72,32.5]
[1759364703504,0.68,221.74,221.72,32.5]
[1759364703805,0.68,221.73,221.72,32.5]
[1759364705516,0.68,221.73,221.66,10.87647521]
[1759364705679,0.68,221.73,221.62,0.71]
[1759364705680,0.68,221.72,221.65,37.01161231]
[1759364705883,0.68,221.71,221.66,32.5]
[1759364706192,0.68,221.7,221.66,32.5]
[1759364706388,0.68,221.69,221.66,32.5]
[1759364706684,2.06260799,221.74,221.64,32.5]
[1759364706685,0.68,221.68,221.64,32.5]
[1759364706891,0.68,221.67,221.64,32.5]
[1759364707198,0.68,221.66,221.64,32.5]
[1759364707688,0.68,221.65,221.59,4.51269091]
[1759364708015,0.68,221.69,221.6,33.21]
[1759364708301,10.87647521,221.7,221.6,32.5]
[1759364708302,0.68,221.68,221.6,32.5]
[1759364708612,0.68,221.67,221.6,32.5]
[1759364709014,0.68,221.66,221.6,32.5]
[1759364709185,0.68,221.66,221.61,4.51243174]
[1759364709511,0.68,221.65,221.61,4.51243174]
[1759364709815,15.38708341,221.7,221.6,32.5]
[1759364709995,0.68,221.64,221.6,37.01260142]
[1759364710195,0.68,221.66,221.6,37.01260142]
[1759364710701,0.68,221.65,221.6,4.51260142]
[1759364710999,0.68,221.64,221.61,32.5]
[1759364711203,0.68,221.63,221.58,20.8]
[1759364711402,0.68,221.62,221.59,32.5]
[1759364711591,0.68,221.64,221.59,32.5]
[1759364711792,0.68,221.67,221.6,0.71]
[1759364711996,10.87647521,221.66,221.56,15.79707528]
[1759364712197,0.68,221.65,221.57,32.5]
[1759364712389,0.68,221.64,221.57,32.5]
[1759364713201,0.68,221.64,221.58,4.51304269]
[1759364713406,10.87647521,221.67,221.58,4.51304269]
[1759364713604,0.68,221.63,221.58,4.51304269]
[1759364713809,0.68,221.62,221.58,4.51304269]
[1759364714685,0.68,221.61,221.52,4.51426507]
[1759364714987,0.68,221.61,221.52,37.01426507]
[1759364714988,11.55647521,221.6,221.52,37.01426507]
[1759364715188,0.68,221.59,221.52,37.01426507]
[1759364715499,0.68,221.58,221.52,37.01426507]
[1759364715813,0.68,221.57,221.52,37.01426507]
[1759364716312,0.68,221.56,221.52,37.01426507]
[1759364717290,0.68,221.62,221.53,0.71]
[1759364717489,132.9,221.68,221.55,20.8]
[1759364717825,21.48,221.69,221.57,0.28432314]
[1759364717995,21.48,221.69,221.58,0.71]
[1759364718989,0.68,221.69,221.59,15.79493658]
[1759364719190,0.68,221.69,221.6,33.21]
[1759364719524,0.68,221.68,221.6,33.21]
[1759364720497,0.68,221.68,221.61,0.71]
[1759364721297,11.59647521,221.71,221.62,15.79279847]
[1759364721504,11.59647521,221.71,221.63,0.69]
[1759364721819,11.59647521,221.71,221.64,32.5]
[1759364721995,0.72,221.7,221.64,32.5]
[1759364722317,0.72,221.69,221.64,32.5]
[1759364722611,0.72,221.68,221.64,32.5]
[1759364723010,0.72,221.7,221.64,32.5]
[1759364723408,0.72,221.7,221.65,4.51161741]
[1759364723715,10.87647521,221.71,221.65,4.51161741]
[1759364723716,0.72,221.69,221.65,4.51161741]
[1759364723897,0.72,221.68,221.62,0.69]
[1759364724097,0.72,221.68,221.61,4.51243174]
[1759364724308,0.72,221.67,221.61,37.01243174]
[1759364724491,10.87647521,221.69,221.61,48.29351111]
[1759364724697,10.87647521,221.69,221.62,0.7]
[1759364724899,10.87647521,221.7,221.62,0.7]
[1759364725107,0.72,221.68,221.61,48.29351111]
[1759364726019,0.72,221.68,221.61,48.99351111]
[1759364728094,10.87647521,221.7,221.61,48.29351111]
[1759364728299,10.87647521,221.7,221.62,0.7]
[1759364728499,11.59647521,221.7,221.62,0.7]
[1759364728998,11.59647521,221.7,221.62,33.18]
[1759364729209,0.72,221.69,221.62,33.18]
[1759364729403,0.72,221.69,221.63,4.51202454]
[1759364729709,0.72,221.68,221.63,4.51202454]
[1759364729903,0.72,221.67,221.63,4.51202454]
[1759364730117,0.72,221.66,221.63,4.51202454]
[1759364730296,0.72,221.66,221.62,32.48]
[1759364730297,0.72,221.65,221.6,4.51263537]
[1759364730498,10.87647521,221.67,221.6,4.51263537]
[1759364730697,0.72,221.65,221.6,4.51263537]
[1759364730923,0.72,221.64,221.6,4.51263537]
[1759364731316,0.72,221.66,221.6,4.51263537]
[1759364731498,0.72,221.66,221.6,5.21263537]
[1759364733095,0.72,221.66,221.6,4.51263537]
[1759364733298,10.87647521,221.64,221.56,32.08332149]
[1759364733522,0.72,221.63,221.56,64.56332149]
[1759364733719,0.72,221.63,221.57,4.51324637]
[1759364735299,0.72,221.63,221.57,15.79636231]
[1759364736323,0.72,221.63,221.57,4.51324637]
[1759364736532,0.72,221.62,221.57,4.51324637]
[1759364736829,0.72,221.61,221.57,4.51324637]
[1759364737331,0.72,221.6,221.57,4.51324637]
[1759364738322,0.72,221.6,221.55,4.5136538]
[1759364738520,0.72,221.63,221.56,0.7]
[1759364739906,0.72,221.63,221.57,4.51324637]
[1759364740129,0.72,221.62,221.57,4.51324637]
[1759364740330,0.72,221.61,221.57,4.51324637]
[1759364740632,10.87647521,221.66,221.57,4.51324637]
[1759364740633,0.72,221.6,221.57,4.51324637]
[1759364742232,0.72,221.6,221.55,15.7977883]
[1759364742409,0.72,221.62,221.56,0.7]
[1759364743140,10.87647521,221.66,221.56,0.7]
[1759364743435,12.9390832,221.69,221.58,20.8]
[1759364743610,12.9390832,221.69,221.57,0.7]
[1759364743611,10.87647521,221.64,221.57,0.7]
[1759364743814,10.87647521,221.64,221.56,13.55779008]
[1759364744133,2.06260799,221.61,221.55,4.5136538]
[1759364744310,11.59647521,221.6,221.55,4.5136538]
[1759364744512,0.72,221.59,221.55,4.5136538]
[1759364744730,0.72,221.58,221.55,4.5136538]
[1759364745119,0.72,221.57,221.53,4.5140613]
[1759364745923,0.72,221.6,221.53,4.5140613]
[1759364746120,10.87647521,221.58,221.53,4.5140613]
[1759364746435,0.72,221.57,221.51,15.80034796]
[1759364746613,10.87647521,221.58,221.51,15.80034796]
[1759364746811,0.72,221.57,221.51,15.80034796]
[1759364747737,10.87647521,221.59,221.52,0.7]
[1759364748548,10.87647521,221.59,221.53,4.5140613]
[1759364749519,0.72,221.58,221.53,4.5140613]
[1759364749719,10.87647521,221.59,221.53,4.5140613]
[1759364749933,0.72,221.58,221.53,4.5140613]
[1759364750224,0.72,221.57,221.53,4.5140613]
[1759364751141,0.72,221.57,221.51,11.98587909]
[1759364751142,0.72,221.57,221.52,4.51426507]
[1759364752237,0.72,221.59,221.53,0.7]
[1759364753346,0.72,221.59,221.54,4.51385754]
[1759364753544,0.72,221.58,221.54,4.51385754]
[1759364754129,0.72,221.58,221.53,5.21396767]
[1759364755158,15.38914299,221.6,221.53,4.51396767]
[1759364755331,0.7,221.57,221.51,5.22446887]
[1759364756626,0.7,221.57,221.5,53.97]
[1759364756849,0.7,221.57,221.5,58.48459852]
[1759364757056,10.87647521,221.58,221.51,0.71]
[1759364757364,10.87647521,221.58,221.5,37.31128023]
[1759364757365,10.87647521,221.56,221.5,37.31128023]
[1759364757669,0.7,221.57,221.5,37.31128023]
[1759364758159,0.7,221.57,221.51,0.71]
[1759364758752,34.52260799,221.62,221.51,0.71]
[1759364758753,7.89544753,221.63,221.55,20.8]
[1759364758929,7.89544753,221.63,221.59,20.8]
[1759364759135,7.89544753,221.63,221.6,32.46]
[1759364759333,7.89544753,221.63,221.61,0.71]
[1759364759748,7.89544753,221.63,221.58,10.87647521]
[1759364759951,8.59544753,221.63,221.58,43.33647521]
[1759364760147,8.59544753,221.63,221.55,20.8]
[1759364760342,8.59544753,221.63,221.56,33.17]
[1759364760735,8.59544753,221.63,221.57,4.51324637]
[1759364760936,13.10747494,221.63,221.57,4.51324637]
[1759364761257,11.57647521,221.62,221.55,36.9536538]
[1759364762250,10.87647521,221.62,221.55,36.9536538]
[1759364762450,10.87647521,221.6,221.55,4.5136538]
[1759364762762,0.7,221.59,221.55,4.5136538]
[1759364763260,0.7,221.58,221.52,32.44]
[1759364763855,0.7,221.57,221.5,4.51447233]
[1759364764048,11.57647521,221.56,221.5,4.51447233]
[1759364764249,16.08996423,221.56,221.49,4.51487651]
[1759364765945,20.8,221.58,221.49,15.8020678]
[1759364766146,10.87647521,221.57,221.5,0.71]
[1759364766348,11.57647521,221.57,221.5,0.71]
[1759364767165,11.57647521,221.57,221.49,4.51487651]
[1759364767334,0.7,221.56,221.49,36.95487651]
[1759364768200,0.7,221.56,221.49,15.8020678]
[1759364768662,0.7,221.55,221.49,4.51487651]
[1759364768872,11.57647521,221.54,221.49,4.51487651]
[1759364769166,3.9290927,221.53,221.44,43.51647521]
[1759364769366,0.7,221.52,221.45,32.44]
[1759364769955,0.7,221.52,221.44,0.2]
[1759364770152,5.21434224,221.52,221.45,4.51554103]
[1759364770464,0.7,221.51,221.45,4.51554103]
[1759364770638,11.57647521,221.5,221.44,0.2]
[1759364770838,14.80556791,221.5,221.44,0.2]
[1759364771273,10.87647521,221.48,221.44,0.2]
[1759364771763,0.7,221.5,221.44,0.2]
[1759364772273,0.7,221.5,221.44,4.71585951]
[1759364772573,5.21472841,221.5,221.44,4.71585951]
[1759364772781,11.57647521,221.49,221.44,0.2]
[1759364773148,14.80556791,221.49,221.44,0.2]
[1759364773953,0.7,221.48,221.44,0.2]
[1759364774151,0.7,221.47,221.44,0.2]
[1759364774351,0.7,221.46,221.44,0.2]
[1759364775248,4.51508419,221.48,221.44,0.2]
[1759364775474,0.7,221.47,221.44,0.2]
[1759364776282,10.87647521,221.49,221.44,0.2]
[1759364776283,0.7,221.49,221.44,0.2]
[1759364776479,0.7,221.49,221.44,4.71579415]
[1759364777162,10.87647521,221.5,221.44,4.71579415]
[1759364777163,15.39123994,221.5,221.44,4.71579415]
[1759364777363,0.7,221.48,221.44,4.71579415]
[1759364777764,0.7,221.47,221.44,0.2]
[1759364778271,0.7,221.49,221.44,0.2]
[1759364778460,0.7,221.49,221.44,4.71576381]
[1759364778856,0.7,221.48,221.44,4.71576381]
[1759364779886,11.57647521,221.5,221.44,4.71576381]
[1759364780062,11.57647521,221.5,221.44,5.42576381]
[1759364780968,7.7435573,221.52,221.45,0.68]
[1759364780969,10.87647521,221.52,221.45,0.68]
[1759364781281,11.55647521,221.52,221.45,0.68]
[1759364781984,4.51446887,221.51,221.45,5.19559949]
[1759364782187,5.19446887,221.51,221.45,4.51559949]
[1759364782680,0.68,221.5,221.45,4.51559949]
[1759364782876,0.68,221.49,221.44,4.71578896]
[1759364783052,0.68,221.48,221.44,0.2]
[1759364783969,7.74384388,221.5,221.44,0.2]
[1759364784279,0.68,221.47,221.44,0.2]
[1759364784461,0.68,221.46,221.44,0.2]
[1759364785753,10.87647521,221.48,221.44,0.2]
[1759364785953,11.55647521,221.48,221.44,0.2]
[1759364786154,10.87647521,221.49,221.44,0.2]
[1759364786355,0.68,221.47,221.44,0.2]
[1759364787671,15.3914794,221.49,221.44,0.2]
[1759364787877,0.68,221.46,221.44,0.2]
[1759364788069,18.6205721,221.49,221.44,0.2]
[1759364788070,0.68,221.45,221.44,0.2]
[1759364790598,5.19569202,221.45,221.44,0.2]
[1759364792200,0.68,221.45,221.44,0.2]
[1759364793272,10.87647521,221.49,221.44,0.2]
[1759364793581,11.55647521,221.49,221.44,4.71586264]
[1759364793788,0.68,221.48,221.44,0.2]
[1759364793959,10.87647521,221.49,221.44,0.2]
[1759364793960,0.68,221.47,221.44,0.2]
[1759364794163,15.39145365,221.49,221.44,0.2]
[1759364794384,0.68,221.48,221.44,0.2]
[1759364794760,11.55647521,221.47,221.44,0.2]
[1759364795208,10.87647521,221.48,221.44,0.2]
[1759364795373,0.68,221.47,221.44,0.2]
[1759364796207,4.51522385,221.48,221.44,0.2]
[1759364796393,0.68,221.46,221.44,0.2]
[1759364797461,0.68,221.45,221.44,0.2]
[1759364802677,5.19569202,221.45,221.44,0.2]
[1759364802866,19.58558307,221.45,221.44,0.2]
[1759364804070,19.30125993,221.45,221.44,0.2]
[1759364804995,14.78556791,221.45,221.44,0.2]
[1759364805303,11.55647521,221.45,221.44,0.2]
[1759364805507,16.07216723,221.45,221.44,0.2]
[1759364806874,11.55647521,221.45,221.44,0.2]
[1759364807079,10.87647521,221.45,221.44,0.2]
[1759364807279,11.55647521,221.45,221.44,0.2]
[1759364807685,16.07216723,221.45,221.44,0.2]
[1759364808203,11.55647521,221.45,221.44,0.2]
[1759364809984,132.9,221.48,221.44,0.2]
[1759364810186,10.87647521,221.47,221.44,0.2]
[1759364810876,165.3,221.48,221.44,5.39577499]
[1759364811075,132.9,221.48,221.45,0.68]
[1759364811284,132.9,221.48,221.44,4.71577499]
[1759364811285,132.9,221.48,221.46,0.68]
[1759364812506,132.9,221.48,221.47,0.68]
[1759364812704,10.87647521,221.54,221.47,0.68]
[1759364812886,10.87647521,221.54,221.46,4.5154295]
[1759364812887,10.87647521,221.53,221.46,4.5154295]
[1759364813087,3.03922222,221.55,221.47,14.24576002]
[1759364813290,3.03922222,221.55,221.48,0.68]
[1759364813906,33.06,221.56,221.48,0.68]
[1759364814204,3.04064823,221.55,221.48,0.68]
[1759364814499,10.87647521,221.56,221.48,0.68]
[1759364814808,3.04047188,221.55,221.48,0.68]
[1759364814996,10.87647521,221.56,221.49,4.51487651]
[1759364815305,3.0404714,221.55,221.49,5.20487651]
[1759364815884,3.0404714,221.55,221.47,18.08087394]
[1759364816082,0.7,221.54,221.47,18.77087394]
[1759364816490,11.57647521,221.56,221.48,0.69]
[1759364816976,11.57647521,221.56,221.49,4.51487651]
[1759364817395,16.09000195,221.56,221.49,4.51487651]
[1759364818307,19.1287031,221.56,221.49,4.51487651]
[1759364818902,8.25240813,221.55,221.49,4.51487651]
[1759364819116,32.08158844,221.6,221.49,4.51487651]
[1759364819117,4.49026527,221.61,221.5,0.69]
[1759364819414,3.03789772,221.6,221.52,20.8]
[1759364819614,10.87647521,221.58,221.49,36.89487651]
[1759364819788,15.79351583,221.61,221.49,36.89487651]
[1759364819789,10.87647521,221.56,221.49,4.51487651]
[1759364820106,0.7,221.55,221.49,4.51487651]
[1759364820984,3.73796633,221.58,221.51,4.51446887]
[1759364821184,0.7,221.58,221.52,0.69]
[1759364821488,3.73796633,221.58,221.52,0.69]
[1759364821897,3.73796633,221.58,221.53,11.28719129]
[1759364822106,0.7,221.58,221.53,11.97719129]
[1759364822289,0.7,221.57,221.53,11.28719129]
[1759364822488,0.7,221.56,221.5,4.51466509]
[1759364822685,0.7,221.56,221.5,15.3911403]
[1759364822988,5.21351388,221.56,221.5,15.3911403]
[1759364824290,0.7,221.56,221.5,15.3911403]
[1759364824698,5.21357462,221.56,221.5,15.3911403]
[1759364825099,0.7,221.55,221.5,10.87647521]
[1759364825403,0.7,221.54,221.49,4.51486497]
[1759364825606,0.7,221.54,221.49,15.39134018]
[1759364825805,0.7,221.53,221.49,10.87647521]
[1759364825991,0.7,221.52,221.46,4.51536421]
[1759364826189,12.94379946,221.54,221.45,13.56698699]
[1759364826398,0.7,221.51,221.45,13.56698699]
[1759364826597,2.06732425,221.52,221.44,4.71572436]
[1759364826598,0.7,221.5,221.44,0.2]
[1759364827000,0.7,221.5,221.44,4.7140613]
[1759364827399,0.7,221.5,221.44,0.2]
[1759364827796,12.94379946,221.49,221.44,0.2]
[1759364828114,0.7,221.48,221.44,0.2]
[1759364828299,11.57647521,221.47,221.44,0.2]
[1759364829587,0.7,221.49,221.44,5.40576335]
[1759364829823,32.36,221.51,221.44,4.71576335]
[1759364829824,11.57647521,221.5,221.44,4.71576335]
[1759364830015,0.7,221.49,221.44,4.71576335]
[1759364831711,0.7,221.48,221.44,0.2]
[1759364832013,0.7,221.47,221.44,0.2]
[1759364834628,10.87647521,221.46,221.44,0.2]
[1759364834839,46.00379946,221.45,221.44,0.2]
[1759364835003,46.2881226,221.45,221.44,0.2]
[1759364836200,50.80381462,221.45,221.44,0.2]
[1759364838319,50.51949148,221.45,221.44,0.2]
[1759364838508,48.45216723,221.45,221.44,0.2]
[1759364839011,10.87647521,221.48,221.44,0.2]
[1759364839698,0.7,221.47,221.44,0.2]
[1759364839905,0.7,221.46,221.44,0.2]
[1759364840231,10.87647521,221.48,221.44,0.2]
[1759364840232,11.57647521,221.48,221.44,0.2]
[1759364840405,4.51548812,221.46,221.44,0.2]
[1759364840601,10.87647521,221.45,221.44,0.2]
[1759364840798,11.57647521,221.45,221.44,0.2]
[1759364841009,13.64379946,221.45,221.44,0.2]
[1759364841411,11.57647521,221.45,221.44,0.2]
[1759364841617,13.64379946,221.45,221.44,0.2]
[1759364842314,13.9281226,221.45,221.44,0.2]
[1759364842530,18.44381462,221.45,221.44,0.2]
[1759364842902,20.8,221.42,221.41,0.2]
[1759364843132,55.49164739,221.42,221.41,0.2]
[1759364843420,56.20164739,221.42,221.41,0.2]
[1759364844828,60.71795124,221.42,221.41,0.2]
[1759364847037,71.59442645,221.42,221.41,0.2]
[1759364847435,71.59442645,221.42,221.41,1e-08]
[1759364847436,74.62334699,221.42,221.41,1e-08]
[1759364848210,0.28432314,221.4,221.39,0.1]
[1759364848438,46.2681226,221.4,221.39,0.1]
[1759364848744,50.78483443,221.4,221.39,0.1]
[1759364854219,50.78483443,221.4,221.39,0.1]
[1759364855216,10.87647521,221.34,221.31,0.67]
[1759364855421,43.21647521,221.34,221.31,0.67]
[1759364855619,43.21647521,221.34,221.3,0.2]
[1759364855919,43.21647521,221.34,221.3,0.87]
[1759364857335,4.51814033,221.33,221.3,0.87]
[1759364857949,4.51814033,221.33,221.31,0.67]
[1759364858260,4.51814033,221.33,221.3,0.2]
[1759364858417,43.21647521,221.34,221.31,0.67]
[1759364858619,47.7344242,221.34,221.31,0.67]
[1759364859025,47.7344242,221.34,221.32,0.67]
[1759364859221,47.7344242,221.34,221.3,0.2]
[1759364859430,47.7344242,221.34,221.31,0.67]
[1759364860247,0.7,221.33,221.3,0.2]
[1759364860422,2.76732425,221.33,221.3,0.2]
[1759364861036,45.28379946,221.32,221.3,0.2]
[1759364861244,12.94379946,221.31,221.3,0.2]
[1759364861741,13.64379946,221.31,221.3,0.2]
[1759364862651,18.1623481,221.31,221.3,0.2]
[1759364862950,17.4623481,221.31,221.3,0.2]
[1759364863148,10.87647521,221.31,221.3,0.2]
[1759364863532,15.39502385,221.31,221.3,0.2]
[1759364864869,16.09502385,221.31,221.3,0.2]
[1759364865047,18.1623481,221.31,221.3,0.2]
[1759364865376,10.87647521,221.34,221.3,0.87]
[1759364865663,32.34,221.33,221.3,0.2]
[1759364866759,4.51854864,221.31,221.3,0.2]
[1759364867743,48.43502385,221.31,221.3,0.2]
[1759364868152,47.73502385,221.31,221.3,0.2]
[1759364872549,20.8,221.34,221.3,5.38872668]
[1759364872742,25.31795118,221.34,221.31,0.67]
[1759364873130,20.8,221.34,221.32,0.67]
[1759364873336,132.9,221.35,221.33,0.67]
[1759364873529,132.9,221.35,221.31,0.67]
[1759364873726,132.9,221.35,221.3,4.71865313]
[1759364873929,132.9,221.35,221.31,5.21847165]
[1759364874140,132.9,221.35,221.32,0.7]
[1759364874857,138.06780515,221.35,221.3,0.2]
[1759364875449,45.91379946,221.34,221.3,0.2]
[1759364875649,43.84647521,221.34,221.3,0.2]
[1759364876364,4.51814033,221.33,221.3,0.2]
[1759364876934,5.16814033,221.33,221.3,0.2]
[1759364877152,12.94379946,221.31,221.3,0.2]
[1759364877367,53.12,221.31,221.3,0.2]
[1759364877552,63.99647521,221.31,221.3,0.2]
[1759364878134,64.64647521,221.31,221.3,0.2]
[1759364878335,69.16502385,221.31,221.3,0.2]
[1759364878968,132.9,221.35,221.3,0.2]
[1759364879149,31.67647521,221.34,221.3,0.9]
[1759364879351,63.99647521,221.34,221.3,0.2]
[1759364879946,0.65,221.33,221.3,0.2]
[1759364880352,37.48834447,221.32,221.3,0.2]
[1759364880664,0.65,221.31,221.3,0.2]
[1759364881467,13.8781226,221.31,221.3,0.2]
[1759364881852,31.67647521,221.27,221.26,0.2]
[1759364882172,66.06379946,221.27,221.26,0.2]
[1759364882342,71.51748808,221.27,221.26,0.2]
[1759364886259,72.68899793,221.27,221.26,0.2]
[1759364886769,69.45016383,221.27,221.26,0.2]
[1759364886951,72.68899793,221.27,221.26,0.2]
[1759364887463,69.45016383,221.27,221.26,0.2]
[1759364887981,72.68899793,221.27,221.26,0.2]
[1759364888359,75.72521759,221.27,221.26,0.2]
[1759364889681,75.72498798,221.27,221.26,0.2]
[1759364890483,72.68899793,221.27,221.26,0.2]
[1759364892787,68.51584069,221.27,221.26,0.2]
[1759364895704,20.8,221.27,221.26,0.2]
[1759364895991,43.17647521,221.3,221.26,0.9]
[1759364896184,32.3,221.29,221.26,0.9]
[1759364896391,32.3,221.29,221.26,0.2]
[1759364897111,36.81909359,221.29,221.27,0.7]
[1759364897267,32.3,221.29,221.27,0.7]
[1759364897588,32.3,221.29,221.26,0.2]
[1759364897793,20.8,221.3,221.27,0.7]
[1759364898088,10.87647521,221.33,221.28,0.7]
[1759364898264,64.62647521,221.33,221.26,5.41953683]
[1759364898878,64.62647521,221.33,221.26,4.71953683]
[1759364899080,68.49461881,221.33,221.28,4.51916124]
[1759364899284,20.8,221.33,221.29,0.7]
[1759364899480,10.87647521,221.35,221.29,0.7]
[1759364899691,43.17647521,221.35,221.29,0.7]
[1759364900901,47.69429298,221.35,221.29,0.7]
[1759364902176,47.69429298,221.35,221.29,5.21894145]
[1759364903195,47.69429298,221.35,221.29,0.7]
[1759364904394,43.17647521,221.35,221.29,5.21887355]
[1759364904598,32.3,221.35,221.3,0.7]
[1759364904785,28.53021252,221.36,221.3,0.7]
[1759364904980,28.53021252,221.36,221.31,4.51854864]
[1759364905187,28.53021252,221.36,221.32,0.7]
[1759364905388,0.66,221.44,221.33,0.7]
[1759364905779,20.8,221.42,221.33,0.7]
[1759364905978,20.8,221.39,221.31,5.21854864]
[1759364906172,20.8,221.37,221.29,5.21895256]
[1759364906507,0.66,221.36,221.29,5.21895256]
[1759364907185,5.17759796,221.36,221.29,5.21895256]
[1759364907684,0.66,221.36,221.29,5.21895256]
[1759364907889,10.87647521,221.37,221.3,0.7]
[1759364908204,20.8,221.38,221.3,0.7]
[1759364908401,20.8,221.39,221.3,0.7]
[1759364908704,20.8,221.39,221.3,14.55744835]
[1759364909001,48.99356983,221.45,221.33,20.8]
[1759364909310,48.99356983,221.45,221.35,15.81206233]
[1759364909603,48.33356983,221.45,221.36,0.7]
[1759364909778,48.99356983,221.45,221.36,0.7]
[1759364909984,53.50931061,221.45,221.36,0.7]
[1759364910815,48.33356983,221.45,221.36,0.98432314]
[1759364911189,48.33356983,221.45,221.37,0.7]
[1759364911387,48.33356983,221.45,221.38,15.80991959]
[1759364911696,48.33356983,221.45,221.39,0.7]
[1759364912209,0.66,221.5,221.39,0.98432314]
[1759364912389,0.66,221.5,221.4,0.7]
[1759364912983,32.92,221.52,221.4,0.7]
[1759364913398,32.92,221.52,221.42,0.28432314]
[1759364913716,32.92,221.52,221.43,0.7]
[1759364914010,21.46,221.52,221.43,0.7]
[1759364914197,25.97430352,221.52,221.43,0.7]
[1759364915285,21.46,221.52,221.44,4.51589595]
[1759364915707,25.31429552,221.52,221.44,4.51589595]
[1759364915903,0.66,221.51,221.44,4.51589595]
[1759364916585,0.66,221.5,221.44,4.51589595]
[1759364919620,0.66,221.5,221.45,0.7]
[1759364919797,25.31426829,221.52,221.45,0.7]
[1759364920107,0.66,221.51,221.45,5.21552615]
[1759364920986,20.8,221.52,221.45,4.51552615]
[1759364921310,0.66,221.56,221.46,0.98432314]
[1759364921619,0.66,221.56,221.47,0.7]
[1759364921909,21.46,221.56,221.47,0.7]
[1759364922116,21.46,221.56,221.48,4.51508036]
[1759364922297,0.66,221.55,221.48,4.51508036]
[1759364922609,0.66,221.55,221.49,0.7]
[1759364924106,0.66,221.55,221.5,4.51467268]
[1759364924305,0.66,221.55,221.5,5.21467268]